fUSD/lending_fUSD_20240623
["ID","MTS","AMOUNT","RATE_DAILY","PERIOD"]
[330201432,1719136800984,-23900.0,0.00011379,2]
[330201433,1719136801006,-181.94573203,0.00011395,2]
[330201434,1719136801311,-155.10759368,0.00011395,2]
[330201435,1719136801334,-200.0,0.00011424,2]
[330201436,1719136801356,-250.0,0.00011425,2]
[330201437,1719136801378,-2957.97,0.0001147,2]
[330201438,1719136801400,-200.0,0.00011538,2]
[330201439,1719136801422,-1815.42,0.00011554,2]
[330201440,1719136801446,-155.0,0.00011664,2]
[330201441,1719136801468,-830.42,0.00011665,2]
[330201442,1719136801489,-155.0,0.00011688,2]
[330201443,1719136801511,-1000.0,0.00011689,2]
[330201444,1719136801533,-1000.0,0.00011721,2]
[330201445,1719136801555,-1000.0,0.00011753,2]
[330201446,1719136801579,-1000.0,0.00011785,2]
[330201447,1719136801602,-200.0,0.0001179,2]
[330201448,1719136801623,-221.84708463,0.00011799,2]
[330201449,1719136801645,-4988.81650323,0.000118,2]
[330201450,1719136801668,-1000.0,0.00011818,2]
[330201451,1719136801707,-630.16945427,0.00011849,2]
[330201452,1719136801731,-1000.0,0.0001185,2]
[330201453,1719136801755,-1000.0,0.00011864,2]
[330201454,1719136801779,-1000.0,0.00011882,2]
[330201455,1719136801803,-1000.0,0.00011914,2]
[330201456,1719136801827,-1000.0,0.00011946,2]
[330201457,1719136801850,-1000.0,0.00011978,2]
[330201458,1719136801872,-10000.0,0.00012,2]
[330201459,1719136801894,-1000.0,0.0001201,2]
[330201460,1719136801916,-173.26,0.00012033,2]
[330201461,1719136801940,-1000.0,0.00012042,2]
[330201462,1719136801964,-1000.0,0.00012074,2]
[330201463,1719136801986,-210.0,0.00012093,2]
[330201464,1719136802010,-1000.0,0.00012106,2]
[330201465,1719136802031,-500.0,0.00012122,2]
[330201466,1719136802054,-2400.0,0.00012122,2]
[330201467,1719136802077,-1000.0,0.00012138,2]
[330201468,1719136802099,-168.78019163,0.00012169,2]
[330201469,1719136802123,-1000.0,0.0001217,2]
[330201470,1719136802146,-1000.0,0.00012202,2]
[330201471,1719136802173,-1000.0,0.00012234,2]
[330201472,1719136802198,-1000.0,0.00012266,2]
[330201473,1719136802223,-1000.0,0.00012298,2]
[330201474,1719136802248,-150.0,0.00012313,2]
[330201475,1719136802272,-338.15897926,0.00012337,2]
[330201476,1719136802294,-519.92612783,0.00012843,2]
[330201477,1719136802315,-258.4282,0.00012844,2]
[330201478,1719136802337,-1494.2292,0.00012844,2]
[330201479,1719136802359,-368.41465211,0.00012924,2]
[330201480,1719136802381,-150.0,0.00012925,2]
[330201481,1719136802409,-209.94218778,0.00012939,2]
[330201482,1719136802433,-500.0,0.00012944,2]
[330201483,1719136802458,-2400.0,0.00012944,2]
[330201484,1719136802482,-1994.58356352,0.0001298,2]
[330201485,1719136802505,-150.0,0.00013035,2]
[330201486,1719136802531,-194.72,0.00013076,2]
[330201487,1719136802553,-3106.52214219,0.00013082,2]
[330201488,1719136802577,-200.0,0.000131,2]
[330201489,1719136802600,-150.0,0.00013103,2]
[330201490,1719136802622,-150.0,0.00013119,2]
[330201491,1719136802646,-150.0,0.00013126,2]
[330201492,1719136802670,-296.62721706,0.00013128,2]
[330201493,1719136802694,-150.0,0.00013129,2]
[330201494,1719136802721,-150.0,0.00013159,2]
[330201495,1719136802745,-158.88933761,0.00013178,2]
[330201496,1719136802772,-1000.0,0.00013182,2]
[330201497,1719136802797,-9048.953433,0.000132,2]
[330201498,1719136802820,-150.0,0.00013205,2]
[330201499,1719136802844,-202.10180189,0.00013205,2]
[330201500,1719136802865,-755.58438261,0.00013215,2]
[330201501,1719136802888,-5104.7324,0.00013215,2]
[330201502,1719136802912,-500.0,0.00013219,2]
[330201503,1719136802936,-500.0,0.0001322,2]
[330201504,1719136802959,-500.0,0.0001322,2]
[330201505,1719136802983,-500.0,0.0001322,2]
[330201506,1719136803005,-755.58438259,0.00013224,2]
[330201507,1719136803029,-209.22678143,0.00013226,2]
[330201508,1719136803052,-196.7104531,0.00013229,2]
[330201509,1719136803074,-755.58438259,0.00013232,2]
[330201510,1719136803096,-150.0,0.00013272,2]
[330201511,1719136803127,-834.42864372,0.00013274,2]
[330201512,1719136803151,-7615.5918517,0.00013282,2]
[330201513,1719136803179,-271.60383587,0.00013286,2]
[330201514,1719136803203,-163.36231763,0.00013287,2]
[330201515,1719136803225,-151.78727401,0.00013287,2]
[330201516,1719136803252,-6000.0,0.000133,2]
[330201517,1719136803275,-8077.3529409,0.00013315,2]
[330201518,1719136803297,-151.0,0.00013315,2]
[330201519,1719136803321,-46427.9053333,0.00013315,2]
[330201520,1719136803344,-159.537136,0.00013315,2]
[330201521,1719136803369,-151.0,0.00013315,2]
[330201522,1719136803392,-2885.5593483,0.00013315,2]
[330201523,1719136803414,-151.0,0.00013315,2]
[330201524,1719136803437,-151.0,0.00013315,2]
[330201525,1719136803465,-794.633558,0.00013315,2]
[330201526,1719136803488,-794.633558,0.00013315,2]
[330201527,1719136803510,-151.0,0.00013315,2]
[330201528,1719136803534,-262.985155,0.00013315,2]
[330201529,1719136803556,-896.536806,0.00013315,2]
[330201530,1719136803579,-896.536806,0.00013315,2]
[330201531,1719136803607,-151.0,0.00013315,2]
[330201532,1719136803631,-205.862473,0.00013315,2]
[330201533,1719136803652,-151.0,0.00013315,2]
[330201534,1719136803679,-529.72889138,0.00013325,2]
[330201535,1719136803706,-209.45341844,0.00013326,2]
[330201536,1719136803728,-5910.04510539,0.00013326,2]
[330201537,1719136803750,-936.0,0.00013327,2]
[330201538,1719136803770,-1000.0,0.00013327,2]
[330201539,1719136803792,-1000.0,0.00013327,2]
[330201540,1719136803814,-1000.0,0.00013327,2]
[330201541,1719136803836,-1000.0,0.00013327,2]
[330201542,1719136803858,-1000.0,0.00013327,2]
[330201543,1719136803883,-1000.0,0.00013327,2]
[330201544,1719136803906,-1000.0,0.00013327,2]
[330201545,1719136803931,-1000.0,0.00013327,2]
[330201546,1719136803960,-1000.0,0.00013327,2]
[330201547,1719136803986,-1000.0,0.00013327,2]
[330201548,1719136804007,-1000.0,0.00013327,2]
[330201549,1719136804031,-1000.0,0.00013327,2]
[330201550,1719136804054,-1000.0,0.00013327,2]
[330201551,1719136804076,-1000.0,0.00013327,2]
[330201552,1719136804097,-1000.0,0.00013327,2]
[330201553,1719136804119,-1000.0,0.00013327,2]
[330201554,1719136804143,-1000.0,0.00013327,2]
[330201555,1719136804194,-1000.0,0.00013327,2]
[330201556,1719136804225,-1000.0,0.00013327,2]
[330201557,1719136804249,-1000.0,0.00013327,2]
[330201558,1719136804272,-1000.0,0.00013327,2]
[330201559,1719136804295,-1000.0,0.00013327,2]
[330201560,1719136804317,-1000.0,0.00013327,2]
[330201561,1719136804341,-1000.0,0.00013327,2]
[330201562,1719136804362,-1000.0,0.00013327,2]
[330201563,1719136804384,-154.10000499,0.00013327,2]
[330201564,1719136804406,-151.0,0.00013327,2]
[330201565,1719136804428,-151.0,0.00013327,2]
[330201566,1719136804453,-151.0,0.00013327,2]
[330201567,1719136804476,-223.163568,0.00013327,2]
[330201568,1719136804500,-223.163568,0.00013327,2]
[330201569,1719136804524,-151.0,0.00013327,2]
[330201570,1719136804548,-155.676632,0.00013327,2]
[330201571,1719136804571,-151.0,0.00013327,2]
[330201572,1719136804597,-160.447953,0.00013327,2]
[330201573,1719136804625,-160.792727,0.00013327,2]
[330201574,1719136804648,-151.0,0.00013327,2]
[330201575,1719136804674,-794.633558,0.00013327,2]
[330201576,1719136804697,-794.633558,0.00013327,2]
[330201577,1719136804719,-794.633558,0.00013327,2]
[330201578,1719136804743,-794.633558,0.00013327,2]
[330201579,1719136804767,-151.0,0.00013327,2]
[330201580,1719136804794,-896.536806,0.00013327,2]
[330201581,1719136804820,-896.536806,0.00013327,2]
[330201582,1719136804847,-151.0,0.00013327,2]
[330201583,1719136804869,-151.0,0.00013327,2]
[330201584,1719136804891,-852686.00022106,0.00013327,2]
[330201585,1719136804916,-753.59338141,0.00013332,2]
[330201586,1719136804942,-150.0,0.00013345,2]
[330201587,1719136804965,-150.0,0.00013378,2]
[330201588,1719136804985,-160.13713916,0.00013383,2]
[330201589,1719136805008,-150.0,0.00013394,2]
[330201590,1719136805030,-155.0,0.00013433,2]
[330201591,1719136805052,-155.73575048,0.00013434,2]
[330201592,1719136805075,-430.47767915,0.00013435,2]
[330201593,1719136805098,-1268.55244945,0.00013436,2]
[330201594,1719136805120,-528.01671537,0.00013436,2]
[330201595,1719136805144,-155.38782348,0.00013447,2]
[330201596,1719136805171,-151.0,0.00013448,2]
[330201597,1719136805191,-697.95107375,0.00013499,2]
[330201598,1719136805217,-1026.0,0.000135,2]
[330201599,1719136805242,-1018.0,0.000135,2]
[330201600,1719136805269,-150.0,0.00013576,2]
[330201601,1719136805290,-1439.04759,0.0001359,2]
[330201602,1719136805313,-150.0,0.00013613,2]
[330201603,1719136805335,-150.0,0.00013642,2]
[330201604,1719136805357,-155.0,0.00013678,2]
[330201605,1719136805379,-150.0,0.00013679,2]
[330201606,1719136805400,-300.0,0.00013679,2]
[330201607,1719136805421,-155.78438258,0.00013689,2]
[330201608,1719136805444,-150.0,0.0001369,2]
[330201609,1719136805468,-1000.0,0.00013699,2]
[330201610,1719136805728,-1000.0,0.00013699,2]
[330201611,1719136805751,-200.0,0.00013699,2]
[330201612,1719136805774,-200.0,0.00013699,2]
[330201613,1719136805797,-167.518201,0.00013699,2]
[330201614,1719136805818,-408.25,0.00013699,2]
[330201615,1719136805840,-516.57,0.00013699,2]
[330201616,1719136805861,-778.32,0.00013699,2]
[330201617,1719136805882,-254.34072375,0.00013699,2]
[330201618,1719136805903,-297.32648978,0.00013703,2]
[330201619,1719136805924,-312.90114904,0.00013703,2]
[330201620,1719136805952,-235.91178258,0.00013711,2]
[330201621,1719136805974,-150.0,0.00013712,2]
[330201622,1719136805997,-2000.0,0.00013766,2]
[330201623,1719136806022,-600.0,0.00013766,2]
[330201624,1719136806043,-500.0,0.00013766,2]
[330201625,1719136806065,-500.0,0.00013766,2]
[330201626,1719136806086,-2400.0,0.00013766,2]
[330201627,1719136806115,-150.0,0.00013785,2]
[330201628,1719136806138,-150.0,0.00013787,2]
[330201629,1719136806168,-248.96979248,0.0001379,2]
[330201630,1719136806192,-150.0,0.00013799,2]
[330201631,1719136806216,-9263.92131911,0.00013799,2]
[330201632,1719136806239,-9263.92131905,0.00013799,2]
[330201633,1719136806263,-9263.92131905,0.00013799,2]
[330201634,1719136806286,-150.0,0.00013849,2]
[330201635,1719136806307,-169.01,0.00013862,2]
[330201636,1719136806329,-209.22678142,0.000139,2]
[330201637,1719136806350,-585.76756956,0.000139,2]
[330201638,1719136806371,-284.52237916,0.000139,2]
[330201639,1719136806392,-4042.25382476,0.000139,2]
[330201640,1719136806414,-150.0,0.00013901,2]
[330201641,1719136806435,-830.42,0.00013928,2]
[330201642,1719136806457,-150.0,0.00013956,2]
[330201643,1719136806478,-33180.0,0.00013973,2]
[330201644,1719136806499,-8102.0,0.00013973,2]
[330201645,1719136806520,-576.0,0.00013973,2]
[330201646,1719136806541,-5117.0,0.00013973,2]
[330201647,1719136806563,-276.75736,0.00013973,2]
[330201648,1719136806585,-794.633558,0.00013973,2]
[330201649,1719136806606,-794.633558,0.00013973,2]
[330201650,1719136806627,-151.0,0.00013973,2]
[330201651,1719136806649,-896.536806,0.00013973,2]
[330201652,1719136806671,-896.536806,0.00013973,2]
[330201653,1719136806696,-151.0,0.00013973,2]
[330201654,1719136806719,-151.0,0.00013973,2]
[330201655,1719136806742,-7615.59185166,0.00013975,2]
[330201656,1719136806766,-248.96979241,0.00013977,2]
[330201657,1719136806786,-300.0,0.00013986,2]
[330201658,1719136806812,-1501674.76267809,0.00014,2]
[330201662,1719137213149,-181.16565992,0.00010628,2]
[330201671,1719137433038,-411.27901864,0.00010628,2]
[330201672,1719137433048,-554.69434008,0.00010628,2]
[330201673,1719137433058,-151.39412324,0.00010981,2]
[330201674,1719137433068,-3022.81708204,0.00011002,2]
[330201675,1719137433077,-218.10152427,0.00011056,2]
[330201676,1719137433086,-2375.40634291,0.00011057,2]
[330201677,1719137433096,-175.29870113,0.00011059,2]
[330201678,1719137433105,-430.47767915,0.00011079,2]
[330201679,1719137433114,-362.64070701,0.00011079,2]
[330201680,1719137433124,-632.743154,0.0001108,2]
[330201681,1719137433133,-2027.78665935,0.0001108,2]
[330201682,1719137433143,-150.0,0.00011082,2]
[330201683,1719137433153,-209.14209067,0.00011085,2]
[330201684,1719137433163,-528.01671537,0.00011094,2]
[330201685,1719137433172,-312.90114904,0.00011095,2]
[330201686,1719137433182,-11551.86,0.00011136,2]
[330201687,1719137433191,-499.99,0.0001139,2]
[330201688,1719137433201,-281.79914938,0.00011395,2]
[330201689,1719137433210,-500.0,0.00012122,2]
[330201690,1719137433220,-920.0,0.00012153,2]
[330201691,1719137433230,-250.0,0.0001231,2]
[330201692,1719137433239,-23900.0,0.00012312,2]
[330201693,1719137433251,-169.85,0.00012341,2]
[330201694,1719137433261,-155.43300154,0.00012587,2]
[330201695,1719137433271,-529.72889138,0.00012601,2]
[330201696,1719137433280,-250.0,0.00012602,2]
[330201697,1719137433290,-1971.64,0.00012614,2]
[330201698,1719137433299,-175.48545791,0.00012743,2]
[330201699,1719137433308,-5158.41086095,0.00012744,2]
[330201700,1719137433321,-638.68830435,0.00012744,2]
[330201701,1719137433333,-484.28691844,0.00012744,2]
[330201702,1719137433344,-482.87677638,0.00012744,2]
[330201703,1719137433392,-1434.21563988,0.00012744,2]
[330201704,1719137433403,-464.40095637,0.00012882,2]
[330201705,1719137433412,-735.86,0.00012892,2]
[330201706,1719137433423,-437.56,0.00013141,2]
[330201707,1719137433432,-437.56,0.00013177,2]
[330201708,1719137433442,-437.56,0.00013213,2]
[330201709,1719137433453,-437.56,0.00013249,2]
[330201710,1719137433464,-465.30071584,0.00013274,2]
[330201711,1719137433476,-437.56,0.00013285,2]
[330201712,1719137433485,-437.56,0.00013321,2]
[330201713,1719137433495,-207.71704746,0.00013356,2]
[330201714,1719137433505,-437.56,0.00013357,2]
[330201715,1719137433514,-297.32648978,0.0001338,2]
[330201716,1719137433524,-297.32648978,0.0001338,2]
[330201717,1719137433533,-437.56,0.00013393,2]
[330201718,1719137433544,-437.56,0.00013429,2]
[330201719,1719137433553,-437.56,0.00013465,2]
[330201720,1719137433563,-437.56,0.00013501,2]
[330201721,1719137433573,-437.56,0.00013537,2]
[330201722,1719137433582,-437.56,0.00013573,2]
[330201723,1719137433592,-437.56,0.00013609,2]
[330201724,1719137433601,-437.56,0.00013646,2]
[330201725,1719137433611,-920.0,0.00013672,2]
[330201726,1719137433620,-437.56,0.00013682,2]
[330201727,1719137433630,-389.16,0.00013699,2]
[330201728,1719137433639,-437.56,0.00013718,2]
[330201729,1719137433649,-321.23571425,0.00013753,2]
[330201730,1719137433693,-7.16844438,0.00013753,2]
[330201731,1719137433702,-328.40415863,0.00013753,2]
[330201732,1719137433712,-375.02317528,0.00013754,2]
[330201733,1719137433724,-62.53682472,0.00013754,2]
[330201734,1719137433734,-500.0,0.00013766,2]
[330201735,1719137433743,-500.0,0.00013766,2]
[330201736,1719137433754,-1800.0,0.00013766,2]
[330201737,1719137433763,-500.0,0.00013766,2]
[330201738,1719137433772,-437.56,0.0001379,2]
[330201739,1719137433781,-199.175834,0.0001379,2]
[330201740,1719137433791,-437.56,0.00013826,2]
[330201741,1719137433800,-1383.82385,0.0001386,2]
[330201742,1719137433810,-153.53,0.0001388,3]
[330201743,1719137433819,-504.26382204,0.00013889,2]
[330201744,1719137433829,-951.4631,0.00013889,2]
[330201745,1719137433838,-100000.0,0.0001389,2]
[330201746,1719137433848,-1000.0,0.0001389,2]
[330201747,1719137433858,-39416.4385,0.0001389,2]
[330201748,1719137433867,-2500.0,0.00013899,2]
[330201749,1719137433876,-6425.92619901,0.00013899,2]
[330201750,1719137433886,-2509.5105,0.000139,2]
[330201751,1719137433895,-1000.0,0.000139,2]
[330201752,1719137433904,-393.9356,0.000139,2]
[330201753,1719137433914,-151.78727399,0.000139,2]
[330201754,1719137433924,-15368.7788613,0.00013989,2]
[330201755,1719137433932,-32121.55441932,0.00013989,2]
[330201756,1719137433944,-897.76498644,0.00013989,2]
[330201757,1719137433956,-358.13145662,0.00013989,2]
[330201758,1719137433967,-2500.0,0.00013989,2]
[330201761,1719137438555,-4375.72993947,0.00013989,2]
[330201762,1719137438567,-80303.05739775,0.00013989,2]
[330201763,1719137438576,-5763.4939276,0.00013989,2]
[330201764,1719137438585,-209.45341844,0.00013999,2]
[330201765,1719137438595,-5910.04510539,0.00013999,2]
[330201766,1719137438604,-843.0,0.00014,2]
[330201767,1719137438614,-92334.97725546,0.00014,2]
[330201768,1719137438625,-251.29173478,0.00014,2]
[330201775,1719137440185,-312.90114904,0.00011094,2]
[330201776,1719137440195,-215.281296,0.00014,2]
[330201777,1719137440368,-972.16673562,0.00014,2]
[330201778,1719137440383,-643.23488832,0.00014,2]
[330201779,1719137442605,-1.373e-05,0.00014,2]
[330201787,1719137443761,-315.38689517,0.00012311,2]
[330201788,1719137443771,-944.02914426,0.00012882,2]
[330201789,1719137443782,-500.0,0.0001379,2]
[330201790,1719137443793,-6346.32654305,0.000139,2]
[330201791,1719137443803,-209.45341844,0.00013999,2]
[330201792,1719137443812,-5910.04510539,0.00013999,2]
[330201793,1719137443821,-407077.33843342,0.00014,2]
[330201794,1719137443842,-331.91893932,0.000139,2]
[330201795,1719137443851,-2776.38910545,0.00014,2]
[330201796,1719137446120,-528.01671537,0.00011085,2]
[330201797,1719137446130,-1145.2237058,0.00014,2]
[330201798,1719137446313,-7472.03447409,0.00014,2]
[330201799,1719137446505,-3883.54834729,0.00014,2]
[330201800,1719137613544,-500.0,0.00012122,2]
[330201801,1719137613568,-1472.26,0.00013755,2]
[330201802,1719137613591,-500.0,0.00013766,2]
[330201803,1719137613614,-300.0,0.00013789,2]
[330201804,1719137620449,662.27,0.00011934,2]
[330201805,1719137681517,500.0,0.00013766,2]
[330201806,1719137688372,460.59641341,0.00013777,2]
[330201807,1719137691708,411.27901864,0.00011934,2]
[330201808,1719137729153,365.73,0.00013699,2]
[330201809,1719137731213,160.0513,0.0001369,2]
[330201810,1719137744225,2167.81326795,0.00013651,2]
[330201811,1719138632079,-629.15,0.00011058,2]
[330201812,1719138632088,-1000.01,0.00012827,2]
[330201813,1719138632102,-194.72,0.00012848,2]
[330201814,1719138632112,-552.0,0.00012872,2]
[330201816,1719138632124,-489.23580018,0.00012892,2]
[330201817,1719138632262,-1001.75692948,0.00012892,2]
[330201818,1719138632274,-1176.44727034,0.00012892,2]
[330201819,1719138632284,-2000.0,0.00012949,3]
[330201820,1719138632294,-981.17,0.00012981,2]
[330201821,1719138632303,-250.0,0.00013068,2]
[330201822,1719138632313,-250.0,0.00013092,2]
[330201823,1719138632323,-299.99,0.00013321,2]
[330201824,1719138632334,-629.15,0.00013321,2]
[330201825,1719138632344,-175.2,0.00013364,2]
[330201826,1719138632354,-448.0,0.00013461,2]
[330201827,1719138632365,-205.98878928,0.00013651,2]
[330201828,1719138632375,-535.48309857,0.0001369,2]
[330201829,1719138632387,-883.54995,0.0001369,2]
[330201849,1719138632786,-846.47,0.0001369,2]
[330201850,1719138632798,-234.49695143,0.0001369,2]
[330201851,1719138632807,-115.73304847,0.00013699,2]
[330201852,1719138632822,-176.84695153,0.00013699,2]
[330201853,1719138632832,-194.58,0.00013699,2]
[330201854,1719138632842,-403.02186169,0.00013699,2]
[330201855,1719138632854,-499.99,0.0001379,2]
[330201856,1719138632863,-5171.84763426,0.0001379,2]
[330201857,1719138632978,-1655.25113112,0.0001379,2]
[330201858,1719138633018,-5322.0791958,0.0001379,2]
[330201859,1719138633031,-11839.01374531,0.0001379,2]
[330201860,1719138633044,-3801.82319234,0.0001379,2]
[330201861,1719138633057,-167.20350117,0.0001379,2]
[330201862,1719138633068,-339.74149883,0.0001379,2]
[330201863,1719138633083,-39076.69700117,0.0001379,2]
[330201864,1719138633322,-1000.0,0.0001379,2]
[330201865,1719138633331,-24793.98376399,0.0001379,2]
[330201871,1719138638238,-463.69679999,0.0001379,2]
[330201872,1719138638419,-771.07115909,0.0001379,2]
[330201873,1719138638432,-987.45743925,0.0001379,2]
[330201874,1719138638443,-3500.5685945,0.0001379,2]
[330201875,1719138638456,-1814.56851,0.0001379,2]
[330201876,1719138638468,-5510.98477767,0.0001379,2]
[330201877,1719138638605,-371.59143874,0.0001379,2]
[330201878,1719138638617,-7775.9653312,0.0001379,2]
[330201879,1719138638628,-30952.57922908,0.0001379,2]
[330201880,1719138638640,-758.11221771,0.0001379,2]
[330201881,1719138638652,-3900.0,0.0001379,2]
[330201885,1719138640301,-2837.74696614,0.0001379,2]
[330201886,1719138640494,-3045.14292529,0.0001379,2]
[330201887,1719138640506,-5578.38217554,0.0001379,2]
[330201888,1719138640518,-3207.735,0.0001379,2]
[330201889,1719138640530,-933.32660171,0.0001379,2]
[330201890,1719138640691,-2797.0870701,0.0001379,2]
[330201891,1719138640702,-500.0,0.0001379,2]
[330201892,1719138640712,-25084.2529299,0.0001379,2]
[330201899,1719138643420,-3219.5262,0.0001379,2]
[330201900,1719138643432,-3262.44251899,0.0001379,2]
[330201901,1719138643444,-213433.77835111,0.0001379,2]
[330201902,1719138643453,-318.23,0.000138,2]
[330201903,1719138643463,-1600.0,0.000138,5]
[330201904,1719138643473,-500.0,0.00013887,2]
[330201905,1719138643482,-500.0,0.00013888,2]
[330201906,1719138643491,-200.0,0.00013888,2]
[330201907,1719138643501,-3200.0,0.000139,5]
[330201908,1719138643510,-151.78727399,0.000139,2]
[330201909,1719138643520,-190.85369923,0.000139,2]
[330201910,1719138643529,-455.79469266,0.00013922,2]
[330201911,1719138643539,-1833.6470098,0.00013989,2]
[330201912,1719138643549,-9838.2722416,0.00013989,2]
[330201913,1719138643561,-60176.4844398,0.00013989,2]
[330201914,1719138643570,-1860.4688083,0.00013989,2]
[330201915,1719138643580,-208.2521774,0.00013989,2]
[330201916,1719138643589,-17477.2721498,0.00013989,2]
[330201917,1719138643599,-195.76537333,0.0001399,2]
[330201918,1719138643609,-209.45341844,0.00013999,2]
[330201919,1719138643618,-5910.04510539,0.00013999,2]
[330201920,1719138643628,-758.0,0.00014,2]
[330201921,1719138643638,-30524.79110983,0.00014,2]
[330201922,1719138643647,-500.0,0.00014,2]
[330201923,1719138643656,-500.0,0.00014,2]
[330201924,1719138643665,-500.0,0.00014,2]
[330201925,1719138643675,-500.0,0.00014,2]
[330201926,1719138643685,-500.0,0.00014,2]
[330201927,1719138643697,-500.0,0.00014,2]
[330201928,1719138643705,-500.0,0.00014,2]
[330201929,1719138643715,-500.0,0.00014,2]
[330201930,1719138643724,-500.0,0.00014,2]
[330201931,1719138643733,-500.0,0.00014,2]
[330201932,1719138643742,-500.0,0.00014,2]
[330201933,1719138643751,-500.0,0.00014,2]
[330201934,1719138643760,-500.0,0.00014,2]
[330201935,1719138643771,-976.0,0.00014,2]
[330201936,1719138643783,-123052.16218112,0.00014,2]
[330201937,1719138643793,-47021.30482603,0.00014,2]
[330201938,1719138643827,-393646.01312392,0.00014,2]
[330201939,1719138643836,-200.0,0.00014,2]
[330201940,1719138643846,-2000.0,0.00014,2]
[330201941,1719138643855,-200.0,0.00014,2]
[330201942,1719138643865,-1830.36347,0.00014,2]
[330201943,1719138643874,-2000.0,0.00014,2]
[330201944,1719138643883,-200.0,0.00014,2]
[330201945,1719138643892,-500.0,0.00014,2]
[330201946,1719138643901,-7575.97,0.00014008,2]
[330201947,1719138643910,-179.33,0.000141,2]
[330201948,1719138643919,-200.0,0.0001414,2]
[330201949,1719138643928,-2000.0,0.0001414,2]
[330201950,1719138643940,-200.0,0.0001414,2]
[330201951,1719138643949,-2000.0,0.0001414,2]
[330201952,1719138643959,-200.0,0.0001414,2]
[330201953,1719138643967,-200.0,0.00014281,2]
[330201954,1719138643976,-2000.0,0.00014281,2]
[330201955,1719138643985,-200.0,0.00014281,2]
[330201956,1719138643994,-2000.0,0.00014281,2]
[330201957,1719138644003,-200.0,0.00014281,2]
[330201958,1719138644012,-292.58,0.00014384,2]
[330201959,1719138644021,-200.0,0.00014424,2]
[330201960,1719138644031,-2000.0,0.00014424,2]
[330201961,1719138644040,-200.0,0.00014424,2]
[330201962,1719138644049,-1891.96036097,0.00014424,2]
[330201963,1719138644058,-552.0,0.00014481,2]
[330201964,1719138644275,-6346.32654305,0.00014536,2]
[330201965,1719138644285,-200.0,0.00014568,2]
[330201966,1719138644296,-2000.0,0.00014568,2]
[330201967,1719138644307,-200.0,0.00014568,2]
[330201968,1719138644316,-403.02186168,0.00014642,2]
[330201969,1719138644327,-282133.38785978,0.00015,2]
[330201970,1719138644337,-490.0,0.00015,2]
[330201971,1719138644347,-151.0,0.00015,2]
[330201972,1719138644356,-151.0,0.00015,2]
[330201973,1719138644366,-151.0,0.00015,2]
[330201974,1719138644375,-151.0,0.00015,2]
[330201975,1719138644384,-627.575765,0.00015,2]
[330201976,1719138644393,-476.780135,0.00015,2]
[330201977,1719138644403,-627.575765,0.00015,2]
[330201978,1719138644413,-476.780135,0.00015,2]
[330201979,1719138644423,-151.0,0.00015,2]
[330201980,1719138644433,-151.0,0.00015,2]
[330201981,1719138644443,-151.0,0.00015,2]
[330201982,1719138644451,-715.63640315,0.00015051,2]
[330201983,1719138644461,-292.58,0.00015068,2]
[330201984,1719138644471,-1900.0,0.00015136,2]
[330201985,1719138644483,-500.0,0.00015136,2]
[330201986,1719138644493,-500.0,0.00015136,2]
[330201987,1719138644502,-1700.0,0.00015136,2]
[330201988,1719138644513,-448.0,0.00015144,2]
[330201989,1719138644523,-6346.32654305,0.00015173,2]
[330201990,1719138644532,-500.0,0.0001541,2]
[330201991,1719138644541,-10000.0,0.000155,2]